fUSD/lending_fUSD_20250506
["ID","MTS","AMOUNT","RATE_DAILY","PERIOD"]
[360103551,1746550254402,-1528.7,0.00019999,2]
[360103553,1746550254411,-694.44,0.00019999,2]
[360103555,1746550254421,-450.0,0.00019999,2]
[360103557,1746550254431,-450.0,0.00019999,2]
[360103559,1746550254441,-450.0,0.00019999,2]
[360103561,1746550254450,-450.0,0.00019999,2]
[360103563,1746550254459,-450.0,0.00019999,2]
[360103569,1746550254506,-503.45,0.00019999,2]
[360103571,1746550254516,-444.78,0.00019999,2]
[360103573,1746550254525,-547.49,0.00019999,2]
[360103575,1746550254535,-450.0,0.00019999,2]
[360103577,1746550254544,-450.0,0.00019999,2]
[360103579,1746550254554,-450.0,0.00019999,2]
[360103581,1746550254563,-450.0,0.00019999,2]
[360103583,1746550254573,-450.0,0.00019999,2]
[360103585,1746550254582,-450.0,0.00019999,2]
[360103587,1746550254591,-450.0,0.00019999,2]
[360103589,1746550254603,-450.0,0.00019999,2]
[360103591,1746550254613,-429.21,0.00019999,2]
[360103593,1746550254622,-12957.37,0.00019999,2]
[360103595,1746550254631,-12957.37,0.00019999,2]
[360103597,1746550254640,-12957.37,0.00019999,2]
[360103599,1746550254650,-12957.37,0.00019999,2]
[360103601,1746550254659,-450.0,0.00019999,2]
[360103603,1746550254668,-12957.37,0.00019999,2]
[360103605,1746550254677,-450.0,0.00019999,2]
[360103607,1746550254686,-450.0,0.00019999,2]
[360103609,1746550254695,-450.0,0.00019999,2]
[360103610,1746550254706,-12957.37,0.00019999,2]
[360103613,1746550254715,-282.80105867,0.00019999,2]
[360103614,1746550254725,-450.0,0.00019999,2]
[360103616,1746550254734,-12957.37,0.00019999,2]
[360103618,1746550254743,-450.0,0.00019999,2]
[360103620,1746550254753,-450.0,0.00019999,2]
[360103623,1746550254763,-12957.37,0.00019999,2]
[360103625,1746550254773,-494.8,0.00019999,2]
[360103626,1746550254782,-12957.37,0.00019999,2]
[360103628,1746550254792,-12957.37,0.00019999,2]
[360103630,1746550254805,-12957.37,0.00019999,2]
[360103632,1746550254815,-12957.37,0.00019999,2]
[360103634,1746550254824,-12957.37,0.00019999,2]
[360103636,1746550254834,-12957.37,0.00019999,2]
[360103638,1746550254845,-12957.37,0.00019999,2]
[360103640,1746550254854,-12957.37,0.00019999,2]
[360103642,1746550254864,-12957.37,0.00019999,2]
[360103644,1746550254873,-12957.37,0.00019999,2]
[360103646,1746550254883,-12957.37,0.00019999,2]
[360103648,1746550254892,-12957.58,0.00019999,2]
[360103650,1746550254901,-266.0,0.00019999,2]
[360103652,1746550254911,-450.0,0.00019999,2]
[360103654,1746550254920,-591.16,0.00019999,2]
[360103656,1746550254929,-450.0,0.00019999,2]
[360103658,1746550254939,-450.0,0.00019999,2]
[360103660,1746550254948,-450.0,0.00019999,2]
[360103662,1746550254958,-450.0,0.00019999,2]
[360103664,1746550254967,-450.0,0.00019999,2]
[360103666,1746550254977,-450.0,0.00019999,2]
[360103669,1746550254987,-450.0,0.00019999,2]
[360103670,1746550254997,-450.0,0.00019999,2]
[360103672,1746550255006,-450.0,0.00019999,2]
[360103674,1746550255016,-238.75,0.00019999,2]
[360103676,1746550255025,-450.0,0.00019999,2]
[360103678,1746550255035,-450.0,0.00019999,2]
[360103680,1746550255045,-507.74064275,0.00019999,2]
[360103682,1746550255054,-169.5,0.00019999,2]
[360103683,1746550255065,-450.0,0.00019999,2]
[360103684,1746550255074,-450.0,0.00019999,2]
[360103685,1746550255084,-450.0,0.00019999,2]
[360103686,1746550255094,-450.0,0.00019999,2]
[360103687,1746550255103,-502.62,0.00019999,2]
[360103688,1746550255113,-450.0,0.00019999,2]
[360103689,1746550255123,-450.0,0.00019999,2]
[360103690,1746550255132,-450.0,0.00019999,2]
[360103691,1746550255142,-450.0,0.00019999,2]
[360103693,1746550255152,-450.0,0.00019999,2]
[360103695,1746550255162,-565.84,0.00019999,2]
[360103697,1746550255171,-450.0,0.00019999,2]
[360103699,1746550255180,-450.0,0.00019999,2]
[360103701,1746550255189,-450.0,0.00019999,2]
[360103703,1746550255198,-450.0,0.00019999,2]
[360103705,1746550255208,-450.0,0.00019999,2]
[360103707,1746550255216,-450.0,0.00019999,2]
[360103709,1746550255226,-433.34,0.00019999,2]
[360103711,1746550255236,-568.16,0.00019999,2]
[360103713,1746550255245,-457.53,0.00019999,2]
[360103715,1746550255254,-457.53,0.00019999,2]
[360103717,1746550255264,-457.53,0.00019999,2]
[360103719,1746550255273,-457.53,0.00019999,2]
[360103721,1746550255282,-457.53,0.00019999,2]
[360103722,1746550255291,-457.53,0.00019999,2]
[360103725,1746550255300,-457.53,0.00019999,2]
[360103727,1746550255309,-457.53,0.00019999,2]
[360103729,1746550255319,-457.53,0.00019999,2]
[360103730,1746550255329,-457.53,0.00019999,2]
[360103732,1746550255338,-457.53,0.00019999,2]
[360103734,1746550255348,-457.53,0.00019999,2]
[360103736,1746550255357,-457.53,0.00019999,2]
[360103738,1746550255366,-457.53,0.00019999,2]
[360103740,1746550255375,-457.53,0.00019999,2]
[360103742,1746550255384,-457.53,0.00019999,2]
[360103744,1746550255393,-457.53,0.00019999,2]
[360103746,1746550255403,-457.53,0.00019999,2]
[360103748,1746550255412,-457.53,0.00019999,2]
[360103750,1746550255421,-457.75,0.00019999,2]
[360103752,1746550255431,-450.0,0.00019999,2]
[360103754,1746550255440,-450.0,0.00019999,2]
[360103756,1746550255449,-450.0,0.00019999,2]
[360103758,1746550255458,-450.0,0.00019999,2]
[360103760,1746550255467,-450.0,0.00019999,2]
[360103762,1746550255477,-450.0,0.00019999,2]
[360103764,1746550255486,-450.0,0.00019999,2]
[360103766,1746550255495,-450.0,0.00019999,2]
[360103768,1746550255504,-450.0,0.00019999,2]
[360103770,1746550255513,-450.0,0.00019999,2]
[360103772,1746550255522,-450.0,0.00019999,2]
[360103774,1746550255531,-450.0,0.00019999,2]
[360103776,1746550255540,-450.0,0.00019999,2]
[360103778,1746550255549,-450.0,0.00019999,2]
[360103779,1746550255558,-450.0,0.00019999,2]
[360103781,1746550255567,-450.0,0.00019999,2]
[360103783,1746550255577,-450.0,0.00019999,2]
[360103785,1746550255586,-421.63024881,0.00019999,2]
[360103787,1746550255595,-450.0,0.00019999,2]
[360103789,1746550255604,-450.0,0.00019999,2]
[360103791,1746550255614,-450.0,0.00019999,2]
[360103793,1746550255624,-450.0,0.00019999,2]
[360103795,1746550255633,-450.0,0.00019999,2]
[360103797,1746550255642,-450.0,0.00019999,2]
[360103799,1746550255652,-488.73,0.00019999,2]
[360103801,1746550255661,-450.0,0.00019999,2]
[360103803,1746550255671,-559.2,0.00019999,2]
[360103805,1746550255681,-450.0,0.00019999,2]
[360103807,1746550255691,-450.0,0.00019999,2]
[360103809,1746550255700,-450.0,0.00019999,2]
[360103811,1746550255709,-450.0,0.00019999,2]
[360103813,1746550255719,-450.0,0.00019999,2]
[360103815,1746550255729,-450.0,0.00019999,2]
[360103817,1746550255738,-450.0,0.00019999,2]
[360103819,1746550255748,-450.0,0.00019999,2]
[360103821,1746550255758,-409.36,0.00019999,2]
[360103823,1746550255768,-450.0,0.00019999,2]
[360103825,1746550255777,-450.0,0.00019999,2]
[360103827,1746550255787,-450.0,0.00019999,2]
[360103829,1746550255798,-441.48,0.00019999,2]
[360103831,1746550255808,-254.61,0.00019999,2]
[360103833,1746550255818,-683.36,0.00019999,2]
[360103835,1746550255827,-450.0,0.00019999,2]
[360103837,1746550255837,-450.0,0.00019999,2]
[360103838,1746550255847,-450.0,0.00019999,2]
[360103839,1746550255857,-450.0,0.00019999,2]
[360103841,1746550255866,-683.36,0.00019999,2]
[360103843,1746550255876,-683.36,0.00019999,2]
[360103844,1746550255885,-683.36,0.00019999,2]
[360103845,1746550255895,-683.36,0.00019999,2]
[360103847,1746550255905,-683.36,0.00019999,2]
[360103848,1746550255915,-683.36,0.00019999,2]
[360103850,1746550255924,-683.36,0.00019999,2]
[360103851,1746550255934,-450.0,0.00019999,2]
[360103853,1746550255944,-450.0,0.00019999,2]
[360103854,1746550255954,-683.36,0.00019999,2]
[360103856,1746550255964,-350.36,0.00019999,2]
[360103858,1746550255974,-683.36,0.00019999,2]
[360103859,1746550255983,-683.36,0.00019999,2]
[360103861,1746550255994,-683.36,0.00019999,2]
[360103862,1746550256003,-683.36,0.00019999,2]
[360103864,1746550256013,-683.36,0.00019999,2]
[360103865,1746550256024,-683.36,0.00019999,2]
[360103867,1746550256034,-683.36,0.00019999,2]
[360103868,1746550256043,-450.0,0.00019999,2]
[360103870,1746550256053,-450.0,0.00019999,2]
[360103872,1746550256062,-450.0,0.00019999,2]
[360103873,1746550256072,-591.3641963,0.00019999,2]
[360103875,1746550256081,-450.0,0.00019999,2]
[360103876,1746550256090,-450.0,0.00019999,2]
[360103878,1746550256102,-450.0,0.00019999,2]
[360103879,1746550256112,-578.66,0.00019999,2]
[360103881,1746550256122,-441.30585122,0.00019999,2]
[360103883,1746550256134,-450.0,0.00019999,2]
[360103884,1746550256144,-450.0,0.00019999,2]
[360103886,1746550256153,-450.0,0.00019999,2]
[360103888,1746550256163,-450.0,0.00019999,2]
[360103889,1746550256173,-704.36,0.00019999,2]
[360103891,1746550256183,-704.36,0.00019999,2]
[360103893,1746550256193,-704.36,0.00019999,2]
[360103894,1746550256203,-704.36,0.00019999,2]
[360103896,1746550256213,-704.36,0.00019999,2]
[360103897,1746550256223,-704.36,0.00019999,2]
[360103899,1746550256233,-704.36,0.00019999,2]
[360103901,1746550256242,-704.36,0.00019999,2]
[360103902,1746550256251,-704.36,0.00019999,2]
[360103904,1746550256261,-450.0,0.00019999,2]
[360103906,1746550256271,-704.36,0.00019999,2]
[360103907,1746550256280,-450.0,0.00019999,2]
[360103909,1746550256289,-704.36,0.00019999,2]
[360103911,1746550256299,-704.36,0.00019999,2]
[360103912,1746550256309,-450.0,0.00019999,2]
[360103914,1746550256319,-704.36,0.00019999,2]
[360103916,1746550256329,-704.36,0.00019999,2]
[360103917,1746550256339,-450.0,0.00019999,2]
[360103919,1746550256350,-704.36,0.00019999,2]
[360103921,1746550256360,-450.0,0.00019999,2]
[360103922,1746550256370,-450.0,0.00019999,2]
[360103924,1746550256380,-363.25,0.00019999,2]
[360103926,1746550256389,-704.36,0.00019999,2]
[360103927,1746550256399,-704.36,0.00019999,2]
[360103929,1746550256408,-704.36,0.00019999,2]
[360103931,1746550256419,-704.36,0.00019999,2]
[360103932,1746550256429,-704.4,0.00019999,2]
[360103934,1746550256439,-450.0,0.00019999,2]
[360103935,1746550256449,-530.52934709,0.00019999,2]
[360103937,1746550256459,-450.0,0.00019999,2]
[360103939,1746550256469,-450.0,0.00019999,2]
[360103940,1746550256479,-450.0,0.00019999,2]
[360103942,1746550256489,-450.0,0.00019999,2]
[360103944,1746550256499,-450.0,0.00019999,2]
[360103945,1746550256508,-450.0,0.00019999,2]
[360103947,1746550256518,-450.0,0.00019999,2]
[360103949,1746550256527,-450.0,0.00019999,2]
[360103950,1746550256537,-254.41,0.00019999,2]
[360103952,1746550256546,-471.73,0.00019999,2]
[360103954,1746550256556,-150.0,0.00019999,2]
[360103955,1746550256565,-471.73,0.00019999,2]
[360103957,1746550256576,-471.73,0.00019999,2]
[360103959,1746550256586,-471.73,0.00019999,2]
[360103960,1746550256597,-471.73,0.00019999,2]
[360103962,1746550256607,-471.73,0.00019999,2]
[360103964,1746550256616,-471.73,0.00019999,2]
[360103965,1746550256627,-471.73,0.00019999,2]
[360103967,1746550256636,-471.73,0.00019999,2]
[360103969,1746550256645,-471.73,0.00019999,2]
[360103970,1746550256655,-471.73,0.00019999,2]
[360103972,1746550256666,-471.73,0.00019999,2]
[360103974,1746550256676,-471.73,0.00019999,2]
[360103975,1746550256686,-471.73,0.00019999,2]
[360103977,1746550256696,-471.73,0.00019999,2]
[360103979,1746550256706,-471.73,0.00019999,2]
[360103980,1746550256716,-471.73,0.00019999,2]
[360103982,1746550256726,-739.939052,0.00019999,2]
[360103984,1746550256737,-739.939052,0.00019999,2]
[360103986,1746550256747,-471.73,0.00019999,2]
[360103987,1746550256758,-471.73,0.00019999,2]
[360103989,1746550256768,-471.83,0.00019999,2]
[360103991,1746550256779,-599.25,0.00019999,2]
[360103992,1746550256789,-428.48455112,0.00019999,2]
[360103994,1746550256802,-151.0,0.00019999,2]
[360103996,1746550256813,-739.939052,0.00019999,2]
[360103997,1746550256824,-739.939052,0.00019999,2]
[360103999,1746550256835,-450.0,0.00019999,2]
[360104001,1746550256846,-450.0,0.00019999,2]
[360104002,1746550256856,-450.0,0.00019999,2]
[360104004,1746550256867,-450.0,0.00019999,2]
[360104006,1746550256876,-450.0,0.00019999,2]
[360104007,1746550256886,-450.0,0.00019999,2]
[360104009,1746550256897,-450.0,0.00019999,2]
[360104011,1746550256907,-450.0,0.00019999,2]
[360104013,1746550256917,-450.0,0.00019999,2]
[360104015,1746550256928,-450.0,0.00019999,2]
[360104017,1746550256938,-450.0,0.00019999,2]
[360104018,1746550256948,-392.07,0.00019999,2]
[360104019,1746550256958,-450.0,0.00019999,2]
[360104020,1746550256968,-450.0,0.00019999,2]
[360104021,1746550256979,-450.0,0.00019999,2]
[360104022,1746550256989,-450.0,0.00019999,2]
[360104023,1746550256999,-450.0,0.00019999,2]
[360104024,1746550257010,-450.0,0.00019999,2]
[360104025,1746550257020,-450.0,0.00019999,2]
[360104026,1746550257030,-450.0,0.00019999,2]
[360104027,1746550257040,-450.0,0.00019999,2]
[360104028,1746550257050,-450.0,0.00019999,2]
[360104029,1746550257060,-318.20009331,0.00019999,2]
[360104030,1746550257071,-329.77,0.00019999,2]
[360104031,1746550257081,-157.852598,0.00019999,2]
[360104032,1746550257091,-269.91,0.00019999,2]
[360104033,1746550257102,-475.4,0.00019999,2]
[360104035,1746550257112,-273.37066052,0.00019999,2]
[360104036,1746550257122,-188895.23359683,0.00019999,2]
[360104051,1746550257259,-282.75335709,0.00019897,2]
[360104053,1746550257271,-167.24664291,0.00019897,2]
[360104055,1746550257280,-191.49835715,0.00019897,2]
[360104057,1746550257292,-258.50164285,0.00019897,2]
[360104059,1746550257303,-550.0,0.00019897,2]
[360104061,1746550257313,-450.0,0.00019897,2]
[360104064,1746550257323,-550.0,0.00019898,2]
[360104066,1746550257333,-494.89009275,0.00019899,2]
[360104068,1746550257343,-500.0,0.00019967,2]
[360104070,1746550257353,-151.0,0.00019999,2]
[360104072,1746550257363,-6624.4775644,0.00019999,2]
[360104075,1746550257380,-450.0,0.00019898,2]
[360104077,1746550257390,-106255.89552612,0.00019999,2]
[360104079,1746550257403,-333635.66326917,0.00019999,2]
[360104081,1746550257414,-927.145,0.0002,2]
[360104083,1746550257423,-1431.157,0.0002,2]
[360104085,1746550257434,-798.0,0.0002,2]
[360104087,1746550257444,-550.0,0.0002,2]
[360104089,1746550257453,-915.0,0.0002,2]
[360104091,1746550257464,-581.0,0.0002,2]
[360104093,1746550257474,-1243.0,0.0002,2]
[360104095,1746550257484,-1451.0,0.0002,2]
[360104098,1746550257494,-4015.0,0.0002,2]
[360104100,1746550257503,-150.0,0.0002,2]
[360104102,1746550257512,-866.118,0.0002,2]
[360104104,1746550257522,-6764.0,0.0002,2]
[360104106,1746550257531,-183.325,0.0002,2]
[360104108,1746550257541,-275.675,0.0002,2]
[360104110,1746550257550,-878.0,0.0002,2]
[360104112,1746550257559,-668751.86716094,0.0002,2]
[360104114,1746550257571,-500.0,0.0002,2]
[360104127,1746550257688,-180.63112451,0.00019985,2]
[360104129,1746550257700,-269.36887549,0.00019985,2]
[360104131,1746550257710,-14.91162443,0.0002,2]
[360104168,1746550258062,-450.0,0.00019897,2]
[360104170,1746550258072,-450.0,0.00019897,2]
[360104173,1746550258081,-450.0,0.00019897,2]
[360104175,1746550258091,-450.0,0.00019897,2]
[360104177,1746550258102,-500.0,0.00019897,2]
[360104179,1746550258112,-450.0,0.00019897,2]
[360104181,1746550258122,-450.0,0.00019897,2]
[360104183,1746550258132,-518.64,0.00019897,2]
[360104185,1746550258144,-450.0,0.00019898,2]
[360104187,1746550258154,-450.0,0.00019899,2]
[360104189,1746550258163,-114.19799999,0.00019899,2]
[360104192,1746550258187,-335.80200001,0.00019899,2]
[360104194,1746550258197,-406.338,0.00019899,2]
[360104197,1746550258209,-43.662,0.00019899,2]
[360104199,1746550258219,-450.0,0.00019967,2]
[360104201,1746550258230,-520.0,0.00019967,2]
[360104203,1746550258240,-450.0,0.00019985,2]
[360104205,1746550258250,-450.0,0.00019985,2]
[360104207,1746550258260,-450.0,0.00019997,2]
[360104223,1746550258270,-450.0,0.00019997,2]
[360104227,1746550258431,-450.0,0.00019997,2]
[360104229,1746550258441,-450.0,0.00019998,2]
[360104231,1746550258451,-450.0,0.00019998,2]
[360104233,1746550258461,-450.0,0.00019998,2]
[360104235,1746550258470,-450.0,0.00019998,2]
[360104237,1746550258480,-450.0,0.00019999,2]
[360104239,1746550258491,-450.0,0.00019999,2]
[360104241,1746550258500,-450.0,0.00019999,2]
[360104243,1746550258511,-344.72,0.00019999,2]
[360104245,1746550258520,-450.0,0.00019999,2]
[360104247,1746550258530,-450.0,0.00019999,2]
[360104249,1746550258539,-450.0,0.00019999,2]
[360104251,1746550258549,-150.0,0.0002,2]
[360104253,1746550258558,-27115.31593067,0.0002,2]
[360104255,1746550258569,-3003.79941483,0.0002,2]
[360104258,1746550258586,-450.0,0.00019999,2]
[360104260,1746550258597,-21210.1472,0.0002,2]
[360104439,1746550379959,152.73,0.000298,31]
[360104440,1746550380076,152.73,0.000298,31]
[360104441,1746550380128,152.73,0.000298,31]
[360104442,1746550380188,152.73,0.000298,31]
[360104443,1746550380256,152.73,0.000298,31]
[360104444,1746550380309,152.73,0.000298,31]
[360104445,1746550380372,152.73,0.000298,31]
[360104446,1746550731860,1500.0,0.0003,120]
[360104447,1746550929112,1000.0,0.00018918,2]
[360104448,1746550941012,705.0,0.0003,120]
[360104449,1746550955327,1500.0,0.0003,120]
[360104450,1746550984235,152.74,0.000298,31]
[360104451,1746550984295,152.74,0.000298,31]
[360104452,1746550984352,152.74,0.000298,31]
[360104453,1746550984426,152.74,0.000298,31]
[360104454,1746550984661,152.74,0.000298,31]
[360104455,1746550984719,152.74,0.000298,31]
[360104456,1746550984763,152.74,0.000298,31]
[360104457,1746551122531,150.0,0.00018,2]
[360104458,1746551122600,150.0,0.00018105,2]
[360104459,1746551122667,150.0,0.00018211,2]
[360104460,1746551122744,150.0,0.00018316,2]
[360104461,1746551122830,150.0,0.00018526,2]
[360104462,1746551122897,150.0,0.00018632,2]
[360104463,1746551122939,150.0,0.00018421,2]
[360104464,1746551122971,150.0,0.00018737,2]
[360104465,1746551123032,150.0,0.00018842,2]
[360104466,1746551123115,150.0,0.00018947,2]
[360104467,1746551123174,150.0,0.00019053,2]
[360104468,1746551123246,150.0,0.00019158,2]
[360104469,1746551123314,150.0,0.00019263,4]
[360104470,1746551123384,150.0,0.00019368,4]
[360104471,1746551123453,150.0,0.00019474,4]
[360104472,1746551139665,-240.058576,0.0001955,2]
[360104473,1746551147399,-101.65955384,0.0001955,2]
[360104474,1746551147421,-148.34044616,0.00019579,4]
[360104475,1746551154298,490.058576,0.00019481,2]
[360104476,1746551186139,155.09,0.00018867,2]
[360104477,1746551191912,156.57,0.00018867,2]
[360104478,1746551226621,5000.0,0.0003,30]
[360104479,1746551236450,3475.63,0.00018859,2]
[360104480,1746551244186,524.62717083,0.0003,30]
[360104481,1746551271365,938.15,0.00016928,2]
[360104482,1746551271576,938.15,0.00019192,2]
[360104483,1746551392153,191.03,0.00019178,2]
[360104485,1746551432542,-1.65955384,0.00019579,4]
[360104487,1746551432555,-250.0,0.00019589,2]
[360104489,1746551432566,-1048.0,0.000196,2]
[360104490,1746551432578,-200.0,0.00019614,2]
[360104492,1746551432590,-200.0,0.0001965,2]
[360104494,1746551432600,-301.24812308,0.00019667,2]
[360104498,1746551432648,-1296.18004578,0.00019667,2]
[360104499,1746551432663,-425.22872077,0.00019667,2]
[360104500,1746551432674,-174.77127923,0.00019681,2]
[360104501,1746551432687,-25.22872077,0.00019681,2]
[360104502,1746551432697,-150.0,0.00019684,4]
[360104504,1746551432708,-300.0,0.00019697,2]
[360104505,1746551432719,-2022.62,0.00019698,2]
[360104506,1746551432732,-1200.0,0.00019698,2]
[360104507,1746551432745,-2022.62,0.00019699,2]
[360104508,1746551432756,-300.0,0.00019699,2]
[360104509,1746551432767,-151.0,0.000197,2]
[360104510,1746551432778,-217.44587564,0.000197,2]
[360104511,1746551432789,-366.40703875,0.000197,2]
[360104512,1746551432800,-5004.93846345,0.000197,2]
[360104513,1746551432814,-3085.54153655,0.000197,2]
[360104514,1746551432824,-150.0,0.00019789,4]
[360104515,1746551432835,-9431.8508,0.00019797,2]
[360104516,1746551432846,-1132.8202,0.00019797,2]
[360104517,1746551432857,-878.12082968,0.00019797,2]
[360104518,1746551432868,-917.20205989,0.00019798,2]
[360104519,1746551432879,-162.36,0.000198,2]
[360104520,1746551432889,-501.6,0.000198,2]
[360104521,1746551432900,-917.20205987,0.00019809,2]
[360104522,1746551432911,-917.20205987,0.00019821,2]
[360104524,1746551432921,-917.20205987,0.00019832,2]
[360104526,1746551432932,-917.20205987,0.00019843,2]
[360104528,1746551432943,-917.20205987,0.00019855,2]
[360104530,1746551432953,-207.4,0.00019861,2]
[360104531,1746551432965,-917.20205987,0.00019866,2]
[360104533,1746551432976,-500.0,0.00019873,2]
[360104535,1746551432987,-500.0,0.00019873,2]
[360104537,1746551432998,-632.83391156,0.00019873,2]
[360104539,1746551433010,-158.62819397,0.00019873,2]
[360104541,1746551433021,-500.0,0.00019873,2]
[360104543,1746551433031,-500.0,0.00019873,2]
[360104545,1746551433042,-308.11565562,0.00019873,2]
[360104547,1746551433053,-601.58050384,0.00019873,2]
[360104548,1746551433064,-500.0,0.00019873,2]
[360104551,1746551433076,-500.0,0.00019873,2]
[360104553,1746551433088,-917.20205987,0.00019877,2]
[360104555,1746551433099,-197.54912088,0.00019885,2]
[360104557,1746551433110,-261.33806643,0.00019885,2]
[360104559,1746551433121,-152.64,0.00019887,2]
[360104561,1746551433132,-522.21,0.00019888,2]
[360104564,1746551433143,-917.20205987,0.00019889,2]
[360104566,1746551433154,-5933.0,0.00019892,2]
[360104568,1746551433165,-1142.0,0.00019892,2]
[360104569,1746551433175,-150.0,0.00019895,4]
[360104570,1746551433186,-500.0,0.00019896,2]
[360104571,1746551433199,-500.0,0.00019896,2]
[360104572,1746551433210,-500.0,0.00019896,2]
[360104573,1746551433221,-491.11786301,0.00019896,2]
[360104574,1746551433232,-168.0354608,0.00019896,2]
[360104575,1746551433244,-500.0,0.00019896,2]
[360104576,1746551433256,-500.0,0.00019896,2]
[360104577,1746551433268,-239.60425124,0.00019896,2]
[360104578,1746551433280,-500.0,0.00019896,2]
[360104579,1746551433292,-500.0,0.00019896,2]
[360104580,1746551433303,-415.11761157,0.00019896,2]
[360104581,1746551433315,-500.0,0.00019896,2]
[360104582,1746551433326,-537.072431,0.00019896,2]
[360104583,1746551433338,-500.0,0.00019896,2]
[360104584,1746551433349,-503.84282518,0.00019896,2]
[360104585,1746551433365,-450.0,0.00019896,2]
[360104586,1746551433377,-450.0,0.00019896,2]
[360104587,1746551433390,-450.0,0.00019896,2]
[360104588,1746551433401,-490.0,0.00019896,2]
[360104589,1746551433412,-208.32940595,0.00019896,2]
[360104590,1746551433423,-500.0,0.00019896,2]
[360104592,1746551433434,-297.52083389,0.00019896,2]
[360104593,1746551433445,-450.0,0.00019896,2]
[360104595,1746551433456,-450.0,0.00019896,2]
[360104597,1746551433467,-450.0,0.00019896,2]
[360104599,1746551433478,-450.0,0.00019896,2]
[360104601,1746551433489,-450.0,0.00019896,2]
[360104603,1746551433500,-450.0,0.00019896,2]
[360104605,1746551433512,-627.03329422,0.00019896,2]
[360104607,1746551433523,-500.0,0.00019896,2]
[360104609,1746551433534,-450.0,0.00019896,2]
[360104612,1746551433546,-450.0,0.00019896,2]
[360104614,1746551433558,-450.0,0.00019896,2]
[360104616,1746551433569,-450.0,0.00019896,2]
[360104618,1746551433580,-450.0,0.00019896,2]
[360104620,1746551433592,-450.0,0.00019896,2]
[360104623,1746551433605,-450.0,0.00019896,2]
[360104625,1746551433616,-450.0,0.00019896,2]
[360104627,1746551433627,-450.0,0.00019896,2]
[360104629,1746551433638,-450.0,0.00019896,2]
[360104631,1746551433649,-450.0,0.00019896,2]
[360104633,1746551433660,-507.28250394,0.00019896,2]
[360104635,1746551433671,-450.0,0.00019896,2]
[360104638,1746551433681,-450.0,0.00019896,2]
[360104640,1746551433692,-207.52363822,0.00019896,2]
[360104642,1746551433703,-450.0,0.00019896,2]
[360104644,1746551433714,-450.0,0.00019896,2]
[360104646,1746551433725,-450.0,0.00019896,2]
[360104648,1746551433735,-450.0,0.00019896,2]
[360104651,1746551433746,-450.0,0.00019896,2]
[360104653,1746551433757,-450.0,0.00019896,2]
[360104655,1746551433768,-655.49,0.00019896,2]
[360104657,1746551433778,-450.0,0.00019896,2]
[360104659,1746551433789,-450.0,0.00019896,2]